[Event "Titled Tuesday Blitz November 07 Late 2023"]
[White "Rostovtsev, Dmitry"]
[Black "Duda, Jan-Krzysztof"]
[WhiteFideId "34278320"]
[BlackFideId "1170546"]
[WhiteElo "2944"]
[BlackElo "3091"]
[Result "0-1"]
[Round "8"]
[TimeControl "180+1"]
[Date "2023.11.07"]
[WhiteClock "0:00:03"]
[BlackClock "0:00:05"]
[Board "2"]

1. d4 {[%clk 0:03:00]}  Nf6 {[%clk 0:02:58]} 2. c4 {[%clk 0:03:01]}  g6 {[%clk 0:02:59]} 3. Nc3 {[%clk 0:03:01]}  d5 {[%clk 0:03:00]} 4. cxd5 {[%clk 0:03:01]}  Nxd5 {[%clk 0:03:01]} 5. e4 {[%clk 0:03:02]}  Nxc3 {[%clk 0:03:01]} 6. bxc3 {[%clk 0:03:02]}  Bg7 {[%clk 0:03:02]} 7. Nf3 {[%clk 0:03:03]}  c5 {[%clk 0:03:02]} 8. Bb5+ {[%clk 0:03:03]}  Nd7 {[%clk 0:03:02]} 9. O-O {[%clk 0:02:56]}  O-O {[%clk 0:03:00]} 10. Rb1 {[%clk 0:02:51]}  a6 {[%clk 0:02:57]} 11. Be2 {[%clk 0:02:50]}  e6 {[%clk 0:02:51]} 12. Bf4 {[%clk 0:02:41]}  b6 {[%clk 0:02:39]} 13. Qd2 {[%clk 0:02:14]}  Bb7 {[%clk 0:02:38]} 14. Bd3 {[%clk 0:01:56]}  Re8 {[%clk 0:02:27]} 15. Rfe1 {[%clk 0:01:46]}  Qc8 {[%clk 0:02:13]} 16. Bg3 {[%clk 0:01:41]}  b5 {[%clk 0:02:12]} 17. h4 {[%clk 0:01:28]}  Nf6 {[%clk 0:01:59]} 18. Be5 {[%clk 0:01:24]}  Rd8 {[%clk 0:01:55]} 19. Qg5 {[%clk 0:01:20]}  Nh5 {[%clk 0:01:35]} 20. Bxg7 {[%clk 0:01:17]}  Kxg7 {[%clk 0:01:36]} 21. Rbd1 {[%clk 0:01:02]}  Qc7 {[%clk 0:01:33]} 22. g3 {[%clk 0:00:57]}  Rac8 {[%clk 0:01:32]} 23. Bb1 {[%clk 0:00:46]}  cxd4 {[%clk 0:01:16]} 24. cxd4 {[%clk 0:00:46]}  b4 {[%clk 0:01:01]} 25. Qe3 {[%clk 0:00:32]}  Nf6 {[%clk 0:00:57]} 26. Ne5 {[%clk 0:00:31]}  a5 {[%clk 0:00:56]} 27. f3 {[%clk 0:00:28]}  a4 {[%clk 0:00:54]} 28. Rc1 {[%clk 0:00:27]}  Qb6 {[%clk 0:00:53]} 29. Rxc8 {[%clk 0:00:26]}  Rxc8 {[%clk 0:00:54]} 30. Rd1 {[%clk 0:00:20]}  Ba6 {[%clk 0:00:49]} 31. Qf4 {[%clk 0:00:19]}  Qa7 {[%clk 0:00:42]} 32. g4 {[%clk 0:00:18]}  b3 {[%clk 0:00:42]} 33. axb3 {[%clk 0:00:18]}  axb3 {[%clk 0:00:43]} 34. Kg2 {[%clk 0:00:15]}  b2 {[%clk 0:00:38]} 35. h5 {[%clk 0:00:08]}  Ng8 {[%clk 0:00:31]} 36. g5 {[%clk 0:00:02]}  gxh5 {[%clk 0:00:25]} 37. Rh1 {[%clk 0:00:02]}  Rc1 {[%clk 0:00:17]} 38. Rxc1 {[%clk 0:00:02]}  bxc1=Q {[%clk 0:00:18]} 39. Qxc1 {[%clk 0:00:02]}  Qxd4 {[%clk 0:00:18]} 40. Qf4 {[%clk 0:00:03]}  Qa7 {[%clk 0:00:17]} 41. Bc2 {[%clk 0:00:02]}  Bb5 {[%clk 0:00:17]} 42. Bb3 {[%clk 0:00:02]}  Be8 {[%clk 0:00:17]} 43. Bd1 {[%clk 0:00:01]}  Qa2+ {[%clk 0:00:14]} 44. Kg3 {[%clk 0:00:02]}  Qa1 {[%clk 0:00:13]} 45. Bb3 {[%clk 0:00:01]}  Qc3 {[%clk 0:00:06]} 46. Ba4 {[%clk 0:00:01]}  Qe1+ {[%clk 0:00:03]} 47. Kh3 {[%clk 0:00:01]}  Qh1+ {[%clk 0:00:04]} 48. Kg3 {[%clk 0:00:01]}  h4+ {[%clk 0:00:02]} 49. Kf2 {[%clk 0:00:02]}  Bxa4 {[%clk 0:00:01]} 50. Qxf7+ {[%clk 0:00:02]}  Kh8 {[%clk 0:00:02]} 51. Qf8 {[%clk 0:00:01]}  Qh2+ {[%clk 0:00:02]} 52. Ke3 {[%clk 0:00:02]}  Qxe5 {[%clk 0:00:02]} 53. f4 {[%clk 0:00:03]}  Qc3+ {[%clk 0:00:02]} 54. Kf2 {[%clk 0:00:03]}  h3 {[%clk 0:00:02]} 55. f5 {[%clk 0:00:03]}  exf5 {[%clk 0:00:02]} 56. exf5 {[%clk 0:00:04]}  h2 {[%clk 0:00:02]} 57. f6 {[%clk 0:00:04]}  Qd2+ {[%clk 0:00:01]} 58. Kg3 {[%clk 0:00:03]}  Qxg5+ {[%clk 0:00:02]} 59. Kxh2 {[%clk 0:00:03]}  Qh6+ {[%clk 0:00:02]} 60. Qxh6 {[%clk 0:00:03]}  Nxh6 {[%clk 0:00:03]} 61. Kg3 {[%clk 0:00:04]}  Nf7 {[%clk 0:00:04]} 62. Kf4 {[%clk 0:00:04]}  Bd7 {[%clk 0:00:05]} 63. Ke4 {[%clk 0:00:03]}  h6 {[%clk 0:00:05]} 0-1


[Site "https://www.chess.com"]

[Event "Titled Tuesday Blitz November 07 Late 2023"]
[White "Melkumyan, Hrant"]
[Black "Hakobyan, Aram"]
[WhiteFideId "13302485"]
[BlackFideId "13306677"]
[WhiteElo "2933"]
[BlackElo "3065"]
[Result "1/2-1/2"]
[Round "8"]
[TimeControl "180+1"]
[Date "2023.11.07"]
[WhiteClock "0:01:44"]
[BlackClock "0:01:18"]
[Board "4"]

1. Nf3 {[%clk 0:02:54]}  Nf6 {[%clk 0:02:59]} 2. c4 {[%clk 0:02:53]}  e6 {[%clk 0:02:58]} 3. Nc3 {[%clk 0:02:51]}  d5 {[%clk 0:02:57]} 4. e3 {[%clk 0:02:51]}  Be7 {[%clk 0:02:50]} 5. b3 {[%clk 0:02:49]}  Nc6 {[%clk 0:02:49]} 6. d4 {[%clk 0:02:45]}  O-O {[%clk 0:02:46]} 7. Bd3 {[%clk 0:02:41]}  Nb4 {[%clk 0:02:46]} 8. Be2 {[%clk 0:02:34]}  dxc4 {[%clk 0:02:45]} 9. bxc4 {[%clk 0:02:33]}  c5 {[%clk 0:02:45]} 10. O-O {[%clk 0:02:32]}  Qa5 {[%clk 0:02:12]} 11. Bb2 {[%clk 0:02:29]}  Rd8 {[%clk 0:02:10]} 12. Qb3 {[%clk 0:02:22]}  cxd4 {[%clk 0:01:54]} 13. exd4 {[%clk 0:02:21]}  Bd7 {[%clk 0:01:51]} 14. Rfd1 {[%clk 0:02:20]}  Rac8 {[%clk 0:01:49]} 15. Ne5 {[%clk 0:02:17]}  Be8 {[%clk 0:01:47]} 16. h3 {[%clk 0:02:05]}  Nc6 {[%clk 0:01:46]} 17. Nf3 {[%clk 0:02:03]}  Qb4 {[%clk 0:01:44]} 18. Rab1 {[%clk 0:01:55]}  Na5 {[%clk 0:01:38]} 19. Qxb4 {[%clk 0:01:51]}  Bxb4 {[%clk 0:01:39]} 20. Ne5 {[%clk 0:01:51]}  Nc6 {[%clk 0:01:34]} 21. Nf3 {[%clk 0:01:50]}  Na5 {[%clk 0:01:30]} 22. Ne5 {[%clk 0:01:50]}  Nc6 {[%clk 0:01:31]} 23. Nf3 {[%clk 0:01:44]}  Na5 {[%clk 0:01:18]} 1/2-1/2


[Site "https://www.chess.com"]

[Event "Titled Tuesday Blitz November 07 Late 2023"]
[White "Bachmann, Axel"]
[Black "Martinez Alcantara, Jose Eduardo"]
[WhiteFideId "3700488"]
[BlackFideId "3805662"]
[WhiteElo "2897"]
[BlackElo "3054"]
[Result "1/2-1/2"]
[Round "8"]
[TimeControl "180+1"]
[Date "2023.11.07"]
[WhiteClock "0:00:39"]
[BlackClock "0:00:32"]
[Board "5"]

1. e4 {[%clk 0:02:34]}  c5 {[%clk 0:03:00]} 2. Nf3 {[%clk 0:02:34]}  d6 {[%clk 0:03:00]} 3. Bb5+ {[%clk 0:02:33]}  Nd7 {[%clk 0:03:00]} 4. Ba4 {[%clk 0:02:30]}  Nf6 {[%clk 0:03:00]} 5. O-O {[%clk 0:02:28]}  e6 {[%clk 0:03:01]} 6. Re1 {[%clk 0:02:28]}  Be7 {[%clk 0:03:01]} 7. d4 {[%clk 0:02:27]}  cxd4 {[%clk 0:03:02]} 8. Nxd4 {[%clk 0:02:28]}  O-O {[%clk 0:03:03]} 9. c4 {[%clk 0:02:28]}  Qc7 {[%clk 0:02:58]} 10. Qe2 {[%clk 0:02:23]}  Nb6 {[%clk 0:02:52]} 11. Bb3 {[%clk 0:02:18]}  Bd7 {[%clk 0:02:53]} 12. Nc3 {[%clk 0:02:15]}  a6 {[%clk 0:02:53]} 13. Bg5 {[%clk 0:02:11]}  Rac8 {[%clk 0:02:52]} 14. Rac1 {[%clk 0:02:11]}  Be8 {[%clk 0:02:29]} 15. h3 {[%clk 0:01:57]}  Nbd7 {[%clk 0:02:27]} 16. Bc2 {[%clk 0:01:45]}  h6 {[%clk 0:02:27]} 17. Bh4 {[%clk 0:01:45]}  Qxc4 {[%clk 0:02:23]} 18. Qd2 {[%clk 0:01:24]}  Qb4 {[%clk 0:02:17]} 19. Bb3 {[%clk 0:01:23]}  Nc5 {[%clk 0:02:04]} 20. Bc2 {[%clk 0:01:14]}  Qb6 {[%clk 0:01:46]} 21. Bb1 {[%clk 0:01:12]}  a5 {[%clk 0:01:44]} 22. Qc2 {[%clk 0:00:58]}  g6 {[%clk 0:01:35]} 23. Qd2 {[%clk 0:00:55]}  Kg7 {[%clk 0:01:29]} 24. Nf3 {[%clk 0:00:50]}  Bc6 {[%clk 0:01:22]} 25. e5 {[%clk 0:00:48]}  dxe5 {[%clk 0:01:23]} 26. Nxe5 {[%clk 0:00:48]}  Rcd8 {[%clk 0:01:11]} 27. Qc2 {[%clk 0:00:44]}  Be8 {[%clk 0:01:06]} 28. Rcd1 {[%clk 0:00:39]}  Rxd1 {[%clk 0:01:03]} 29. Rxd1 {[%clk 0:00:40]}  Ng8 {[%clk 0:01:03]} 30. Bg3 {[%clk 0:00:35]}  Nf6 {[%clk 0:01:04]} 31. Qc1 {[%clk 0:00:32]}  Bc6 {[%clk 0:00:47]} 32. Nc4 {[%clk 0:00:29]}  Qa6 {[%clk 0:00:41]} 33. b3 {[%clk 0:00:26]}  Ncd7 {[%clk 0:00:39]} 34. Bf4 {[%clk 0:00:22]}  Rh8 {[%clk 0:00:36]} 35. Qb2 {[%clk 0:00:18]}  a4 {[%clk 0:00:34]} 36. Ne4 {[%clk 0:00:16]}  Bd5 {[%clk 0:00:28]} 37. Ne5 {[%clk 0:00:14]}  Nxe5 {[%clk 0:00:21]} 38. Bxe5 {[%clk 0:00:15]}  Bxe4 {[%clk 0:00:21]} 39. Bxe4 {[%clk 0:00:15]}  axb3 {[%clk 0:00:16]} 40. axb3 {[%clk 0:00:16]}  Rd8 {[%clk 0:00:16]} 41. Rc1 {[%clk 0:00:13]}  Rd7 {[%clk 0:00:14]} 42. Rc3 {[%clk 0:00:10]}  Qb6 {[%clk 0:00:08]} 43. Rf3 {[%clk 0:00:09]}  Qd8 {[%clk 0:00:08]} 44. g4 {[%clk 0:00:07]}  Rd2 {[%clk 0:00:07]} 45. Qc3 {[%clk 0:00:06]}  Re2 {[%clk 0:00:08]} 46. Bxb7 {[%clk 0:00:04]}  g5 {[%clk 0:00:05]} 47. Kg2 {[%clk 0:00:04]}  Kg6 {[%clk 0:00:02]} 48. Ba6 {[%clk 0:00:05]}  Rxe5 {[%clk 0:00:02]} 49. Qxe5 {[%clk 0:00:04]}  Kg7 {[%clk 0:00:03]} 50. Bd3 {[%clk 0:00:04]}  Qa8 {[%clk 0:00:03]} 51. Bc4 {[%clk 0:00:03]}  Qb7 {[%clk 0:00:04]} 52. b4 {[%clk 0:00:03]}  Qxb4 {[%clk 0:00:04]} 53. Bxe6 {[%clk 0:00:03]}  fxe6 {[%clk 0:00:04]} 54. Qxe6 {[%clk 0:00:04]}  Qb7 {[%clk 0:00:04]} 55. Qf5 {[%clk 0:00:02]}  Qd5 {[%clk 0:00:04]} 56. Kg1 {[%clk 0:00:03]}  Qxf5 {[%clk 0:00:04]} 57. Rxf5 {[%clk 0:00:04]}  Bd6 {[%clk 0:00:04]} 58. Ra5 {[%clk 0:00:03]}  Bf4 {[%clk 0:00:05]} 59. Ra7+ {[%clk 0:00:03]}  Kg6 {[%clk 0:00:06]} 60. Ra6 {[%clk 0:00:04]}  Kf7 {[%clk 0:00:06]} 61. Kg2 {[%clk 0:00:05]}  Be5 {[%clk 0:00:06]} 62. Ra7+ {[%clk 0:00:05]}  Ke6 {[%clk 0:00:06]} 63. Ra6+ {[%clk 0:00:06]}  Bd6 {[%clk 0:00:06]} 64. Ra7 {[%clk 0:00:06]}  Nd5 {[%clk 0:00:06]} 65. Ra8 {[%clk 0:00:07]}  Be7 {[%clk 0:00:06]} 66. Ra6+ {[%clk 0:00:06]}  Bd6 {[%clk 0:00:06]} 67. Kf3 {[%clk 0:00:06]}  Nf4 {[%clk 0:00:06]} 68. h4 {[%clk 0:00:07]}  Ng6 {[%clk 0:00:05]} 69. hxg5 {[%clk 0:00:07]}  hxg5 {[%clk 0:00:06]} 70. Ke4 {[%clk 0:00:07]}  Ne5 {[%clk 0:00:05]} 71. f3 {[%clk 0:00:05]}  Nd7 {[%clk 0:00:05]} 72. Rxd6+ {[%clk 0:00:05]}  Kxd6 {[%clk 0:00:06]} 73. f4 {[%clk 0:00:06]}  gxf4 {[%clk 0:00:05]} 74. Kxf4 {[%clk 0:00:07]}  Ke6 {[%clk 0:00:06]} 75. g5 {[%clk 0:00:07]}  Kf7 {[%clk 0:00:07]} 76. g6+ {[%clk 0:00:08]}  Kg8 {[%clk 0:00:08]} 77. g7 {[%clk 0:00:08]}  Nb6 {[%clk 0:00:09]} 78. Kg5 {[%clk 0:00:09]}  Na4 {[%clk 0:00:10]} 79. Kg6 {[%clk 0:00:10]}  Nb2 {[%clk 0:00:11]} 80. Kf5 {[%clk 0:00:10]}  Na4 {[%clk 0:00:12]} 81. Kg4 {[%clk 0:00:11]}  Nc3 {[%clk 0:00:13]} 82. Kh4 {[%clk 0:00:12]}  Na2 {[%clk 0:00:13]} 83. Kh3 {[%clk 0:00:13]}  Nc1 {[%clk 0:00:14]} 84. Kh2 {[%clk 0:00:14]}  Nb3 {[%clk 0:00:15]} 85. Kg2 {[%clk 0:00:15]}  Na5 {[%clk 0:00:16]} 86. Kh1 {[%clk 0:00:15]}  Nc6 {[%clk 0:00:17]} 87. Kg2 {[%clk 0:00:16]}  Na7 {[%clk 0:00:18]} 88. Kf1 {[%clk 0:00:17]}  Nb5 {[%clk 0:00:19]} 89. Ke2 {[%clk 0:00:18]}  Nc7 {[%clk 0:00:20]} 90. Kd1 {[%clk 0:00:18]}  Na8 {[%clk 0:00:21]} 91. Kc2 {[%clk 0:00:19]}  Nb6 {[%clk 0:00:22]} 92. Kb1 {[%clk 0:00:20]}  Nc8 {[%clk 0:00:22]} 93. Ka2 {[%clk 0:00:21]}  Nd6 {[%clk 0:00:23]} 94. Kb3 {[%clk 0:00:22]}  Ne8 {[%clk 0:00:24]} 95. Kc2 {[%clk 0:00:23]}  Nf6 {[%clk 0:00:25]} 96. Kb1 {[%clk 0:00:23]}  Nh7 {[%clk 0:00:26]} 97. Ka2 {[%clk 0:00:24]}  Ng5 {[%clk 0:00:27]} 98. Kb3 {[%clk 0:00:25]}  Nf7 {[%clk 0:00:28]} 99. Kc2 {[%clk 0:00:25]}  Nh6 {[%clk 0:00:29]} 100. Kb1 {[%clk 0:00:26]}  Ng4 {[%clk 0:00:30]} 101. Ka2 {[%clk 0:00:27]}  Ne5 {[%clk 0:00:30]} 102. Kb3 {[%clk 0:00:28]}  Nd7 {[%clk 0:00:31]} 103. Kc2 {[%clk 0:00:28]}  Nf6 {[%clk 0:00:32]} 104. Kb1 {[%clk 0:00:29]}  Kf7 {[%clk 0:00:33]} 105. Ka2 {[%clk 0:00:29]}  Ng8 {[%clk 0:00:34]} 106. Kb1 {[%clk 0:00:30]}  Ke6 {[%clk 0:00:34]} 107. Kc2 {[%clk 0:00:31]}  Ke5 {[%clk 0:00:35]} 108. Kd1 {[%clk 0:00:31]}  Kd4 {[%clk 0:00:36]} 109. Ke2 {[%clk 0:00:32]}  Ke4 {[%clk 0:00:37]} 110. Kf2 {[%clk 0:00:33]}  Kf4 {[%clk 0:00:38]} 111. Ke2 {[%clk 0:00:34]}  Kg4 {[%clk 0:00:39]} 112. Kf2 {[%clk 0:00:35]}  Kh4 {[%clk 0:00:40]} 113. Ke2 {[%clk 0:00:36]}  Kh5 {[%clk 0:00:41]} 114. Kd3 {[%clk 0:00:37]}  Kg5 {[%clk 0:00:41]} 115. Kc4 {[%clk 0:00:37]}  Kf5 {[%clk 0:00:42]} 116. Kd5 {[%clk 0:00:38]}  Kf6 {[%clk 0:00:43]} 117. Kc6 {[%clk 0:00:39]}  Kf7 {[%clk 0:00:44]} 118. Kb5 {[%clk 0:00:39]}  Kxg7 {[%clk 0:00:32]} 1/2-1/2


[Site "https://www.chess.com"]

[Event "Titled Tuesday Blitz November 07 Late 2023"]
[White "Bortnyk, Olexandr"]
[Black "Kamsky, Gata"]
[WhiteFideId "14120828"]
[BlackFideId "2000024"]
[WhiteElo "3045"]
[BlackElo "2874"]
[Result "0-1"]
[Round "8"]
[TimeControl "180+1"]
[Date "2023.11.07"]
[WhiteClock "0:00:02"]
[BlackClock "0:00:09"]
[Board "6"]

1. d4 {[%clk 0:03:00]}  Nf6 {[%clk 0:02:54]} 2. Nc3 {[%clk 0:03:01]}  d5 {[%clk 0:02:46]} 3. Bf4 {[%clk 0:03:01]}  Bf5 {[%clk 0:02:41]} 4. e3 {[%clk 0:03:00]}  e6 {[%clk 0:02:40]} 5. Nf3 {[%clk 0:03:00]}  Nbd7 {[%clk 0:02:34]} 6. Bd3 {[%clk 0:02:19]}  Bb4 {[%clk 0:02:26]} 7. O-O {[%clk 0:02:15]}  Bxd3 {[%clk 0:02:18]} 8. cxd3 {[%clk 0:02:14]}  O-O {[%clk 0:02:13]} 9. Qb3 {[%clk 0:02:14]}  a5 {[%clk 0:02:06]} 10. a3 {[%clk 0:02:03]}  Bxc3 {[%clk 0:01:49]} 11. bxc3 {[%clk 0:02:04]}  b6 {[%clk 0:01:47]} 12. c4 {[%clk 0:02:02]}  c5 {[%clk 0:01:41]} 13. Bd6 {[%clk 0:01:54]}  Re8 {[%clk 0:01:40]} 14. Rab1 {[%clk 0:01:50]}  a4 {[%clk 0:01:33]} 15. Qb5 {[%clk 0:01:47]}  Ra5 {[%clk 0:01:25]} 16. Qb2 {[%clk 0:01:25]}  Qa8 {[%clk 0:01:21]} 17. Rfc1 {[%clk 0:01:15]}  Rc8 {[%clk 0:01:18]} 18. Ne5 {[%clk 0:01:13]}  h6 {[%clk 0:01:11]} 19. h3 {[%clk 0:00:59]}  Ra6 {[%clk 0:00:58]} 20. Nxd7 {[%clk 0:00:50]}  Nxd7 {[%clk 0:00:57]} 21. Qb5 {[%clk 0:00:51]}  Rc6 {[%clk 0:00:48]} 22. Bg3 {[%clk 0:00:43]}  Ra5 {[%clk 0:00:48]} 23. Qb2 {[%clk 0:00:43]}  cxd4 {[%clk 0:00:41]} 24. Qxd4 {[%clk 0:00:44]}  Qc8 {[%clk 0:00:35]} 25. Rb4 {[%clk 0:00:41]}  Kh7 {[%clk 0:00:19]} 26. Rd1 {[%clk 0:00:32]}  dxc4 {[%clk 0:00:18]} 27. dxc4 {[%clk 0:00:29]}  Nc5 {[%clk 0:00:15]} 28. Rb5 {[%clk 0:00:15]}  Ra7 {[%clk 0:00:13]} 29. Qd8 {[%clk 0:00:14]}  Qxd8 {[%clk 0:00:13]} 30. Rxd8 {[%clk 0:00:15]}  Nb3 {[%clk 0:00:12]} 31. Be5 {[%clk 0:00:12]}  Ra5 {[%clk 0:00:10]} 32. Rd7 {[%clk 0:00:05]}  Kg8 {[%clk 0:00:10]} 33. Rd8+ {[%clk 0:00:04]}  Kh7 {[%clk 0:00:10]} 34. Rd7 {[%clk 0:00:05]}  Kg6 {[%clk 0:00:09]} 35. Bg3 {[%clk 0:00:02]}  Rxb5 {[%clk 0:00:09]} 36. cxb5 {[%clk 0:00:03]}  Rc5 {[%clk 0:00:09]} 37. Ra7 {[%clk 0:00:03]}  Rxb5 {[%clk 0:00:09]} 38. Rxa4 {[%clk 0:00:03]}  Nc5 {[%clk 0:00:08]} 39. Rg4+ {[%clk 0:00:01]}  Kh7 {[%clk 0:00:08]} 40. Bc7 {[%clk 0:00:02]}  Rb3 {[%clk 0:00:06]} 41. Rc4 {[%clk 0:00:01]}  Rxa3 {[%clk 0:00:05]} 42. Bxb6 {[%clk 0:00:02]}  Nd7 {[%clk 0:00:04]} 43. Bc7 {[%clk 0:00:02]}  Nf6 {[%clk 0:00:04]} 44. f3 {[%clk 0:00:01]}  Rxe3 {[%clk 0:00:03]} 45. Bf4 {[%clk 0:00:01]}  Rd3 {[%clk 0:00:03]} 46. Be5 {[%clk 0:00:02]}  Nd5 {[%clk 0:00:03]} 47. Rc2 {[%clk 0:00:02]}  f6 {[%clk 0:00:03]} 48. Bg3 {[%clk 0:00:02]}  h5 {[%clk 0:00:03]} 49. h4 {[%clk 0:00:02]}  Kg6 {[%clk 0:00:03]} 50. Rb2 {[%clk 0:00:02]}  e5 {[%clk 0:00:03]} 51. Rb7 {[%clk 0:00:02]}  Rc3 {[%clk 0:00:02]} 52. Bf2 {[%clk 0:00:02]}  Nf4 {[%clk 0:00:02]} 53. g3 {[%clk 0:00:02]}  Ne6 {[%clk 0:00:02]} 54. Rb6 {[%clk 0:00:02]}  Nd4 {[%clk 0:00:01]} 55. Bxd4 {[%clk 0:00:02]}  exd4 {[%clk 0:00:02]} 56. Kf2 {[%clk 0:00:03]}  Rc2+ {[%clk 0:00:02]} 57. Kf1 {[%clk 0:00:03]}  Rc3 {[%clk 0:00:03]} 58. Kf2 {[%clk 0:00:03]}  Rc2+ {[%clk 0:00:03]} 59. Kf1 {[%clk 0:00:03]}  d3 {[%clk 0:00:04]} 60. Rd6 {[%clk 0:00:03]}  Rd2 {[%clk 0:00:04]} 61. Rd5 {[%clk 0:00:03]}  Kf7 {[%clk 0:00:04]} 62. Ke1 {[%clk 0:00:03]}  Rg2 {[%clk 0:00:04]} 63. Rxh5 {[%clk 0:00:04]}  Rxg3 {[%clk 0:00:04]} 64. Kf2 {[%clk 0:00:04]}  Rh3 {[%clk 0:00:04]} 65. Rd5 {[%clk 0:00:04]}  Rxh4 {[%clk 0:00:02]} 66. Kg3 {[%clk 0:00:05]}  Rh1 {[%clk 0:00:01]} 67. Rd7+ {[%clk 0:00:05]}  Kg6 {[%clk 0:00:01]} 68. Rxd3 {[%clk 0:00:06]}  Rh5 {[%clk 0:00:01]} 69. f4 {[%clk 0:00:06]}  Rf5 {[%clk 0:00:01]} 70. Rd6 {[%clk 0:00:07]}  Rb5 {[%clk 0:00:02]} 71. Kg4 {[%clk 0:00:06]}  Ra5 {[%clk 0:00:02]} 72. Rd7 {[%clk 0:00:07]}  Rb5 {[%clk 0:00:02]} 73. Ra7 {[%clk 0:00:07]}  Rc5 {[%clk 0:00:03]} 74. Rb7 {[%clk 0:00:08]}  f5+ {[%clk 0:00:03]} 75. Kh4 {[%clk 0:00:08]}  Kh6 {[%clk 0:00:03]} 76. Rb6+ {[%clk 0:00:08]}  g6 {[%clk 0:00:03]} 77. Rb4 {[%clk 0:00:07]}  Rc3 {[%clk 0:00:03]} 78. Rb8 {[%clk 0:00:06]}  Rc1 {[%clk 0:00:04]} 79. Rh8+ {[%clk 0:00:06]}  Kg7 {[%clk 0:00:03]} 80. Ra8 {[%clk 0:00:07]}  Rg1 {[%clk 0:00:03]} 81. Kh3 {[%clk 0:00:06]}  Rg4 {[%clk 0:00:03]} 82. Ra4 {[%clk 0:00:07]}  Kh6 {[%clk 0:00:04]} 83. Rb4 {[%clk 0:00:06]}  Kh5 {[%clk 0:00:04]} 84. Rd4 {[%clk 0:00:01]}  g5 {[%clk 0:00:05]} 85. Rb4 {[%clk 0:00:01]}  Rxf4 {[%clk 0:00:05]} 86. Rb8 {[%clk 0:00:02]}  Rf3+ {[%clk 0:00:05]} 87. Kg2 {[%clk 0:00:02]}  g4 {[%clk 0:00:05]} 88. Rg8 {[%clk 0:00:02]}  Kh4 {[%clk 0:00:06]} 89. Rg7 {[%clk 0:00:02]}  Rd3 {[%clk 0:00:06]} 90. Rf7 {[%clk 0:00:02]}  Kg5 {[%clk 0:00:06]} 91. Ra7 {[%clk 0:00:02]}  Rd2+ {[%clk 0:00:05]} 92. Kf1 {[%clk 0:00:02]}  g3 {[%clk 0:00:05]} 93. Ra3 {[%clk 0:00:02]}  f4 {[%clk 0:00:05]} 94. Kg1 {[%clk 0:00:02]}  Kg4 {[%clk 0:00:05]} 95. Ra8 {[%clk 0:00:02]}  f3 {[%clk 0:00:05]} 96. Rg8+ {[%clk 0:00:02]}  Kf4 {[%clk 0:00:06]} 97. Rf8+ {[%clk 0:00:02]}  Ke4 {[%clk 0:00:06]} 98. Re8+ {[%clk 0:00:03]}  Kd3 {[%clk 0:00:06]} 99. Rd8+ {[%clk 0:00:03]}  Kc3 {[%clk 0:00:06]} 100. Rc8+ {[%clk 0:00:03]}  Kb4 {[%clk 0:00:06]} 101. Rb8+ {[%clk 0:00:03]}  Kc5 {[%clk 0:00:06]} 102. Rc8+ {[%clk 0:00:02]}  Kb6 {[%clk 0:00:07]} 103. Rb8+ {[%clk 0:00:02]}  Kc7 {[%clk 0:00:07]} 104. Rb1 {[%clk 0:00:03]}  Rg2+ {[%clk 0:00:07]} 105. Kh1 {[%clk 0:00:04]}  Rh2+ {[%clk 0:00:07]} 106. Kg1 {[%clk 0:00:04]}  f2+ {[%clk 0:00:08]} 107. Kf1 {[%clk 0:00:02]}  Rh1+ {[%clk 0:00:09]} 0-1


[Site "https://www.chess.com"]

[Event "Titled Tuesday Blitz November 07 Late 2023"]
[White "Szpar, Milosz"]
[Black "Makarian, Rudik"]
[WhiteFideId "1184989"]
[BlackFideId "44105681"]
[WhiteElo "2834"]
[BlackElo "2993"]
[Result "0-1"]
[Round "8"]
[TimeControl "180+1"]
[Date "2023.11.07"]
[WhiteClock "0:00:02"]
[BlackClock "0:00:28"]
[Board "7"]

1. Nf3 {[%clk 0:02:32]}  d5 {[%clk 0:02:59]} 2. e3 {[%clk 0:02:32]}  Nf6 {[%clk 0:02:59]} 3. c4 {[%clk 0:02:31]}  c6 {[%clk 0:02:59]} 4. Nc3 {[%clk 0:02:31]}  a6 {[%clk 0:02:59]} 5. b3 {[%clk 0:02:21]}  Bf5 {[%clk 0:02:50]} 6. Bb2 {[%clk 0:02:20]}  e6 {[%clk 0:02:49]} 7. Be2 {[%clk 0:02:20]}  Be7 {[%clk 0:02:50]} 8. Nh4 {[%clk 0:02:16]}  Bg6 {[%clk 0:02:49]} 9. O-O {[%clk 0:02:12]}  Nbd7 {[%clk 0:02:48]} 10. f4 {[%clk 0:02:02]}  O-O {[%clk 0:02:44]} 11. Nxg6 {[%clk 0:01:24]}  hxg6 {[%clk 0:02:44]} 12. g4 {[%clk 0:01:25]}  Nc5 {[%clk 0:02:39]} 13. g5 {[%clk 0:01:24]}  Nfe4 {[%clk 0:02:39]} 14. Nxe4 {[%clk 0:01:11]}  Nxe4 {[%clk 0:02:40]} 15. d3 {[%clk 0:01:07]}  Nd6 {[%clk 0:02:39]} 16. Rf3 {[%clk 0:01:06]}  Nf5 {[%clk 0:02:36]} 17. Rh3 {[%clk 0:01:03]}  f6 {[%clk 0:02:36]} 18. e4 {[%clk 0:00:54]}  dxe4 {[%clk 0:01:54]} 19. dxe4 {[%clk 0:00:55]}  Qb6+ {[%clk 0:01:55]} 20. Kh1 {[%clk 0:00:53]}  Rad8 {[%clk 0:01:55]} 21. Qe1 {[%clk 0:00:50]}  Bb4 {[%clk 0:01:51]} 22. Qf1 {[%clk 0:00:32]}  Nd4 {[%clk 0:01:39]} 23. c5 {[%clk 0:00:22]}  Bxc5 {[%clk 0:01:33]} 24. Bc4 {[%clk 0:00:19]}  Rde8 {[%clk 0:01:27]} 25. Qg2 {[%clk 0:00:11]}  Qc7 {[%clk 0:01:21]} 26. f5 {[%clk 0:00:09]}  fxg5 {[%clk 0:01:05]} 27. Qxg5 {[%clk 0:00:07]}  gxf5 {[%clk 0:01:01]} 28. Qg6 {[%clk 0:00:05]}  Qf4 {[%clk 0:00:57]} 29. Rg1 {[%clk 0:00:03]}  Qxe4+ {[%clk 0:00:55]} 30. Rg2 {[%clk 0:00:03]}  Rf7 {[%clk 0:00:41]} 31. Rh7 {[%clk 0:00:04]}  Kf8 {[%clk 0:00:31]} 32. Rh8+ {[%clk 0:00:03]}  Ke7 {[%clk 0:00:31]} 33. Rxe8+ {[%clk 0:00:03]}  Kxe8 {[%clk 0:00:31]} 34. Bxd4 {[%clk 0:00:02]}  Bxd4 {[%clk 0:00:29]} 35. Bxe6 {[%clk 0:00:01]}  Qe1+ {[%clk 0:00:28]} 36. Rg1 {[%clk 0:00:01]}  Qxg1+ {[%clk 0:00:28]} 37. Qxg1 {[%clk 0:00:02]}  Bxg1 {[%clk 0:00:28]} 38. Bxf7+ {[%clk 0:00:02]}  Kxf7 {[%clk 0:00:29]} 39. Kxg1 {[%clk 0:00:02]}  g5 {[%clk 0:00:28]} 0-1


[Site "https://www.chess.com"]